fUSD/lending_fUSD_20260313
["ID","MTS","AMOUNT","RATE_DAILY","PERIOD"]
[408293345,1773364232462,-500.0,0.00015035,2]
[408293347,1773364232471,-500.0,0.00015035,2]
[408293349,1773364232480,-500.0,0.00015035,2]
[408293351,1773364232489,-500.0,0.00015035,2]
[408293353,1773364232498,-500.0,0.00015035,2]
[408293355,1773364232507,-500.0,0.00015035,2]
[408293357,1773364232518,-500.0,0.00015035,2]
[408293359,1773364232527,-500.0,0.00015035,2]
[408293361,1773364232537,-317.06031895,0.00015035,2]
[408293363,1773364232546,-500.0,0.00015035,2]
[408293365,1773364232556,-500.0,0.00015035,2]
[408293367,1773364232565,-500.0,0.00015035,2]
[408293369,1773364232574,-500.0,0.00015035,2]
[408293370,1773364232583,-500.0,0.00015035,2]
[408293371,1773364232593,-500.0,0.00015035,2]
[408293372,1773364232602,-500.0,0.00015035,2]
[408293373,1773364232610,-500.0,0.00015035,2]
[408293374,1773364232620,-500.0,0.00015035,2]
[408293375,1773364232630,-500.0,0.00015035,2]
[408293376,1773364232639,-500.0,0.00015035,2]
[408293377,1773364232649,-500.0,0.00015035,2]
[408293378,1773364232657,-500.0,0.00015035,2]
[408293379,1773364232666,-500.0,0.00015035,2]
[408293380,1773364232676,-154.84728736,0.00015035,2]
[408293381,1773364232685,-500.0,0.00015035,2]
[408293382,1773364232694,-500.0,0.00015035,2]
[408293383,1773364232703,-500.0,0.00015035,2]
[408293384,1773364232712,-500.0,0.00015035,2]
[408293385,1773364232723,-500.0,0.00015035,2]
[408293386,1773364232732,-500.0,0.00015035,2]
[408293387,1773364232742,-500.0,0.00015035,2]
[408293388,1773364232751,-500.0,0.00015035,2]
[408293389,1773364232765,-500.0,0.00015035,2]
[408293390,1773364232774,-567.32168703,0.00015035,2]
[408293391,1773364232784,-500.0,0.00015035,2]
[408293392,1773364232793,-500.0,0.00015035,2]
[408293393,1773364232803,-500.0,0.00015035,2]
[408293394,1773364232812,-181.34715684,0.00015035,2]
[408293395,1773364232823,-500.0,0.00015035,2]
[408293396,1773364232832,-500.0,0.00015035,2]
[408293397,1773364232843,-289619.84559619,0.00015036,2]
[408293398,1773364232855,-23056.29848915,0.00015036,2]
[408293399,1773364232868,-31744.14842261,0.00015036,2]
[408293400,1773364232881,-100587.75322317,0.00015036,2]
[408293401,1773364232892,-10725.77457303,0.00015036,2]
[408293402,1773364232904,-26751.33222373,0.00015036,2]
[408293403,1773364232915,-400.0,0.00015036,2]
[408293404,1773364232927,-256.43587715,0.00015036,2]
[408293408,1773364238254,-162.39,0.0001465,2]
[408293409,1773364238264,-183.83909034,0.00015036,2]
[408293410,1773364238308,-1576.84016456,0.00015036,2]
[408293441,1773364240731,-8352.65530702,0.00015036,2]
[408293442,1773364240743,-3635.59696548,0.00015036,2]
[408293443,1773364240787,-10185.21742384,0.00015036,2]
[408293459,1773364243330,-300.0,0.00015036,2]
[408293460,1773364243386,-450.0,0.00015036,2]
[408293480,1773364246427,-300.0,0.00015036,2]
[408293481,1773364246439,-7892.035199,0.00015036,2]
[408293482,1773364246548,-4500.0,0.00015036,2]
[408293483,1773364246559,-2133.4375607,0.00015036,2]
[408293487,1773364349595,139.46650382,0.00014256,2]
[408293488,1773364349619,360.53349618,0.00014256,2]
[408293489,1773364386164,156.0,0.00014346,2]
[408293490,1773364485409,500.0,0.00014256,2]
[408293491,1773364525771,-156.0,0.00014346,2]
[408293492,1773364525800,-154.0,0.00014346,2]
[408293493,1773364567200,156.0,0.00014346,2]
[408293494,1773364640406,500.0,0.00014242,2]
[408293495,1773364718572,372.387747,0.00014283,7]
[408293496,1773364723108,-156.0,0.00014346,2]
[408293499,1773364805160,154.0,0.00014346,2]
[408293503,1773365107994,154.0,0.00014346,2]
[408293504,1773365193123,-259.67,0.00014362,2]
[408293505,1773365193149,-20.70347382,0.00014362,2]
[408293506,1773365388838,342.89,0.00014346,2]
[408293507,1773365407053,160.0,0.00014346,2]
[408293515,1773365431331,-269.0,0.00014362,2]
[408293516,1773365431341,-357.0,0.00014498,7]
[408293517,1773365431350,-250.0,0.0001452,2]
[408293518,1773365431359,-154.51721543,0.00014795,2]
[408293520,1773365431550,-345.48278457,0.00014795,2]
[408293521,1773365431559,-165.0,0.00014795,2]
[408293522,1773365431568,-89.51721543,0.00014798,2]
[408293523,1773365431579,-1110.48278457,0.00014798,2]
[408293524,1773365431589,-150.0,0.00014798,2]
[408293526,1773365431598,-300.0,0.00014798,2]
[408293527,1773365431607,-167.76867297,0.00014799,2]
[408293528,1773365431617,-847.9086966,0.00014799,2]
[408293529,1773365431806,-6871.03631523,0.00014799,2]
[408293530,1773365431815,-6304.77131884,0.00014799,2]
[408293531,1773365431825,-13338.19484478,0.00014799,2]
[408293532,1773365431835,-178.87704855,0.00014826,2]
[408293533,1773365431844,-1002.56202872,0.00014834,2]
[408293534,1773365431854,-150.0,0.00014834,2]
[408293535,1773365431864,-607.09381069,0.00014835,2]
[408293536,1773365431873,-251.23105972,0.00014835,2]
[408293537,1773365431883,-500.0,0.00014835,2]
[408293538,1773365431892,-500.0,0.00014835,2]
[408293539,1773365431902,-608.48229249,0.00014835,2]
[408293540,1773365431911,-313.33104695,0.00014835,2]
[408293541,1773365431921,-500.0,0.00014835,2]
[408293542,1773365431930,-500.0,0.00014835,2]
[408293543,1773365431940,-500.0,0.00014835,2]
[408293544,1773365431949,-500.0,0.00014835,2]
[408293545,1773365431959,-500.0,0.00014835,2]
[408293546,1773365431968,-500.0,0.00014835,2]
[408293547,1773365431977,-350.55833019,0.00014835,2]
[408293548,1773365431987,-500.0,0.00014835,2]
[408293549,1773365431996,-500.0,0.00014835,2]
[408293550,1773365432005,-500.0,0.00014835,2]
[408293551,1773365432013,-493.39386795,0.00014835,2]
[408293552,1773365432022,-500.0,0.00014835,2]
[408293553,1773365432030,-500.0,0.00014835,2]
[408293554,1773365432039,-500.0,0.00014835,2]
[408293555,1773365432048,-500.0,0.00014835,2]
[408293556,1773365432057,-150.0,0.00014835,2]
[408293557,1773365432066,-500.0,0.00014835,2]
[408293558,1773365432076,-500.0,0.00014835,2]
[408293559,1773365432085,-500.0,0.00014835,2]
[408293560,1773365432095,-500.0,0.00014835,2]
[408293561,1773365432104,-500.0,0.00014835,2]
[408293562,1773365432116,-500.0,0.00014835,2]
[408293563,1773365432125,-500.0,0.00014835,2]
[408293564,1773365432135,-500.0,0.00014835,2]
[408293565,1773365432144,-500.0,0.00014835,2]
[408293566,1773365432156,-500.0,0.00014835,2]
[408293567,1773365432166,-500.0,0.00014835,2]
[408293568,1773365432175,-500.0,0.00014835,2]
[408293569,1773365432187,-500.0,0.00014835,2]
[408293570,1773365432197,-500.0,0.00014835,2]
[408293571,1773365432207,-500.0,0.00014835,2]
[408293572,1773365432216,-500.0,0.00014835,2]
[408293573,1773365432226,-500.0,0.00014835,2]
[408293574,1773365432235,-500.0,0.00014835,2]
[408293575,1773365432245,-500.0,0.00014835,2]
[408293576,1773365432256,-500.0,0.00014835,2]
[408293577,1773365432265,-500.0,0.00014835,2]
[408293578,1773365432275,-500.0,0.00014835,2]
[408293579,1773365432285,-500.0,0.00014835,2]
[408293580,1773365432295,-500.0,0.00014835,2]
[408293581,1773365432304,-500.0,0.00014835,2]
[408293582,1773365432314,-500.0,0.00014835,2]
[408293583,1773365432323,-500.0,0.00014835,2]
[408293584,1773365432333,-500.0,0.00014835,2]
[408293585,1773365432343,-500.0,0.00014835,2]
[408293586,1773365432352,-500.0,0.00014835,2]
[408293587,1773365432361,-500.0,0.00014835,2]
[408293588,1773365432371,-500.0,0.00014835,2]
[408293589,1773365432380,-500.0,0.00014835,2]
[408293590,1773365432389,-500.0,0.00014835,2]
[408293591,1773365432398,-500.0,0.00014835,2]
[408293592,1773365432408,-500.0,0.00014835,2]
[408293593,1773365432418,-500.0,0.00014835,2]
[408293594,1773365432428,-500.0,0.00014835,2]
[408293595,1773365432437,-500.0,0.00014835,2]
[408293596,1773365432446,-500.0,0.00014835,2]
[408293597,1773365432456,-500.0,0.00014835,2]
[408293598,1773365432465,-500.0,0.00014835,2]
[408293599,1773365432474,-500.0,0.00014835,2]
[408293600,1773365432484,-500.0,0.00014835,2]
[408293601,1773365432494,-500.0,0.00014835,2]
[408293602,1773365432503,-500.0,0.00014835,2]
[408293603,1773365432512,-358.08471105,0.00014835,2]
[408293604,1773365432522,-500.0,0.00014835,2]
[408293605,1773365432531,-500.0,0.00014835,2]
[408293606,1773365432540,-500.0,0.00014835,2]
[408293607,1773365432550,-175.11896921,0.00014835,2]
[408293608,1773365432559,-500.0,0.00014835,2]
[408293609,1773365432568,-500.0,0.00014835,2]
[408293610,1773365432578,-500.0,0.00014835,2]
[408293611,1773365432587,-500.0,0.00014835,2]
[408293612,1773365432596,-500.0,0.00014835,2]
[408293613,1773365432606,-500.0,0.00014835,2]
[408293614,1773365432616,-500.0,0.00014835,2]
[408293615,1773365432625,-500.0,0.00014835,2]
[408293616,1773365432634,-500.0,0.00014835,2]
[408293617,1773365432644,-500.0,0.00014835,2]
[408293618,1773365432654,-500.0,0.00014835,2]
[408293619,1773365432663,-500.0,0.00014835,2]
[408293620,1773365432672,-500.0,0.00014835,2]
[408293621,1773365432681,-500.0,0.00014835,2]
[408293622,1773365432690,-65.49292686,0.00014835,2]
[408293625,1773365437452,-434.50707314,0.00014835,2]
[408293626,1773365437463,-500.0,0.00014835,2]
[408293627,1773365437473,-500.0,0.00014835,2]
[408293628,1773365437482,-500.0,0.00014835,2]
[408293629,1773365437492,-591.12868288,0.00014835,2]
[408293630,1773365437502,-500.0,0.00014835,2]
[408293631,1773365437512,-500.0,0.00014835,2]
[408293632,1773365437522,-159.92424398,0.00014835,2]
[408293639,1773365439758,-340.07575602,0.00014835,2]
[408293640,1773365439768,-89.46024398,0.00014835,2]
[408293641,1773365439782,-410.53975602,0.00014835,2]
[408293642,1773365439793,-500.0,0.00014835,2]
[408293643,1773365439803,-500.0,0.00014835,2]
[408293644,1773365439812,-247.63406324,0.00014835,2]
[408293645,1773365439822,-500.0,0.00014835,2]
[408293646,1773365439831,-21.0868741,0.00014835,2]
[408293647,1773365439843,-518.12685528,0.00014835,2]
[408293648,1773365439856,-69.26856311,0.00014835,2]
[408293649,1773365439867,-500.0,0.00014835,2]
[408293650,1773365439878,-27.02943689,0.00014835,2]
[408293651,1773365439891,-581.4528556,0.00014835,2]
[408293652,1773365439903,-500.0,0.00014835,2]
[408293653,1773365439913,-166.39340736,0.00014835,2]
[408293654,1773365439931,-442.08888513,0.00014835,2]
[408293655,1773365439940,-500.0,0.00014835,2]
[408293656,1773365439950,-210.87683963,0.00014835,2]
[408293659,1773365442787,-397.60545286,0.00014835,2]
[408293660,1773365442797,-218.53643475,0.00014835,2]
[408293665,1773365442935,-31.15260823,0.00014835,2]
[408293700,1773365445507,-250.31095702,0.00014835,2]
[408293701,1773365445517,-608.48229249,0.00014835,2]
[408293702,1773365445529,-500.0,0.00014835,2]
[408293703,1773365445540,-608.48229249,0.00014835,2]
[408293704,1773365445550,-500.0,0.00014835,2]
[408293705,1773365445560,-608.48229249,0.00014835,2]
[408293706,1773365445571,-500.0,0.00014835,2]
[408293707,1773365445584,-608.48229249,0.00014835,2]
[408293708,1773365445594,-500.0,0.00014835,2]
[408293709,1773365445605,-608.48229249,0.00014835,2]
[408293710,1773365445615,-500.0,0.00014835,2]
[408293711,1773365445625,-608.48229249,0.00014835,2]
[408293712,1773365445635,-500.0,0.00014835,2]
[408293713,1773365445645,-608.48229249,0.00014835,2]
[408293714,1773365445657,-500.0,0.00014835,2]
[408293715,1773365445670,-608.48229249,0.00014835,2]
[408293716,1773365445682,-1108.48229249,0.00014835,2]
[408293717,1773365445694,-2248.94282748,0.00014836,2]
[408293718,1773365445708,-27795.52915804,0.00014836,2]
[408293735,1773365640811,300.717899,0.00014094,7]
[408293737,1773365706690,160.0,0.00014346,2]
[408293738,1773365738789,-1815.554,0.00014539,2]
[408293740,1773365968212,166.66,0.00013243,2]
[408293741,1773365968422,166.66,0.00013521,2]
[408293742,1773365968615,166.66,0.000138,2]
[408293743,1773365968824,166.66,0.00014079,2]
[408293744,1773365969021,166.66,0.00014358,2]
[408293745,1773365987251,4166.71,0.00014037,2]
[408293746,1773365987278,573.59947552,0.00014037,2]
[408293747,1773365987302,722.8955016,0.00014037,2]
[408293748,1773365987328,703.46502288,0.00014037,2]
[408293750,1773366006893,161.0,0.00014539,2]
[408293751,1773366009406,1812.95,0.00011507,2]
[408293752,1773366029472,2000.0,0.0001391,2]
[408293754,1773366212694,1026.06,0.00013867,2]
[408293755,1773366212719,473.94,0.00013867,2]
[408293756,1773366216749,928.54,0.00013867,2]
[408293757,1773366285370,708.64977797,0.00014536,2]
[408293758,1773366307210,161.0,0.00014539,2]
[408293759,1773366344576,397.1,0.00013809,2]
[408293760,1773366347236,2804.72022203,0.00014539,2]
[408293761,1773366359459,-3560.01,0.00014539,2]
[408293762,1773366360645,299.269787,0.0001398,7]
[408293763,1773366362643,-2038.16977797,0.00014539,2]
[408293764,1773366368314,590.54148165,0.00014536,2]
[408293765,1773366377880,333.12896241,0.00013813,2]
[408293766,1773366377905,1660.83834743,0.00013813,2]
[408293767,1773366378568,-4076.33955594,0.00013813,2]
[408293768,1773366379895,-911.29686578,0.00013813,2]
[408293769,1773366379998,-1049.99132114,0.00013813,2]
[408293770,1773366380109,-2872.5850527,0.00013813,2]
[408293771,1773366380136,-4254.8398946,0.00013813,2]
[408293773,1773366496996,1651.0,0.00013771,2]
[408293774,1773366568540,400.184872,0.00013904,7]
[408293775,1773366602090,150.0,0.00013763,2]
[408293776,1773366605411,161.0,0.0001434,2]
[408293777,1773366631440,-1651.0,0.0001446,2]
[408293778,1773366631450,-270.0,0.0001446,2]
[408293779,1773366631462,-300.0,0.00014535,2]
[408293780,1773366631472,-1200.0,0.00014535,2]
[408293782,1773366631483,-6363.40539544,0.00014536,2]
[408293783,1773366631493,-6213.16469934,0.00014536,2]
[408293785,1773366631502,-170.5282637,0.00014536,2]
[408293787,1773366631512,-492.11790135,0.00014536,2]
[408293788,1773366631524,-300.0,0.0001456,2]
[408293789,1773366631534,-500.0,0.00014561,2]
[408293790,1773366631544,-150.0,0.00014561,2]
[408293791,1773366631553,-153.46310958,0.00014561,2]
[408293792,1773366631567,-161.946409,0.00014561,2]
[408293793,1773366631576,-152.35349863,0.00014561,2]
[408293795,1773366631586,-500.0,0.00014561,2]
[408293797,1773366631595,-150.0,0.00014561,2]
[408293798,1773366631605,-500.0,0.00014616,2]
[408293799,1773366631615,-150.0,0.00014616,2]
[408293800,1773366631624,-500.0,0.00014616,2]
[408293801,1773366631634,-150.0,0.00014616,2]
[408293802,1773366631645,-834.4315411,0.0001462,2]
[408293803,1773366631655,-13369.1701,0.00014626,2]
[408293805,1773366631665,-160.21,0.00014626,2]
[408293806,1773366631674,-160.21,0.00014626,2]
[408293807,1773366631684,-195.7334047,0.00014626,2]
[408293808,1773366631693,-499.03336123,0.00014634,2]
[408293809,1773366631703,-150.0,0.00014634,2]
[408293811,1773366631712,-430.34897887,0.00014635,2]
[408293812,1773366631722,-271.2719833,0.00014635,2]
[408293814,1773366631731,-181.4077603,0.00014635,2]
[408293815,1773366631742,-541.89919725,0.00014635,2]
[408293816,1773366631752,-500.0,0.00014635,2]
[408293817,1773366631762,-344.54164349,0.00014635,2]
[408293818,1773366631780,-429.9297022,0.00014635,2]
[408293820,1773366631792,-500.0,0.00014635,2]
[408293822,1773366631804,-500.0,0.00014635,2]
[408293824,1773366631818,-500.0,0.00014635,2]
[408293827,1773366631832,-500.0,0.00014635,2]
[408293829,1773366631844,-500.0,0.00014635,2]
[408293831,1773366631855,-500.0,0.00014635,2]
[408293833,1773366631866,-500.0,0.00014635,2]
[408293835,1773366631876,-500.0,0.00014635,2]
[408293836,1773366631887,-500.0,0.00014635,2]
[408293837,1773366631898,-500.0,0.00014635,2]
[408293838,1773366631910,-500.0,0.00014635,2]
[408293839,1773366631921,-500.0,0.00014635,2]
[408293840,1773366631933,-500.0,0.00014635,2]
[408293841,1773366631944,-500.0,0.00014635,2]
[408293842,1773366631955,-500.0,0.00014635,2]
[408293843,1773366631966,-500.0,0.00014635,2]
[408293844,1773366631977,-500.0,0.00014635,2]
[408293845,1773366631989,-500.0,0.00014635,2]
[408293846,1773366632001,-500.0,0.00014635,2]
[408293847,1773366632013,-500.0,0.00014635,2]
[408293848,1773366632025,-500.0,0.00014635,2]
[408293849,1773366632037,-500.0,0.00014635,2]
[408293850,1773366632049,-500.0,0.00014635,2]
[408293851,1773366632060,-500.0,0.00014635,2]
[408293852,1773366632071,-500.0,0.00014635,2]
[408293853,1773366632082,-500.0,0.00014635,2]
[408293854,1773366632093,-500.0,0.00014635,2]
[408293855,1773366632104,-500.0,0.00014635,2]
[408293856,1773366632114,-500.0,0.00014635,2]
[408293857,1773366632124,-500.0,0.00014635,2]
[408293858,1773366632135,-500.0,0.00014635,2]
[408293859,1773366632157,-500.0,0.00014635,2]
[408293860,1773366632172,-293.08089302,0.00014635,2]
[408293861,1773366632185,-500.0,0.00014635,2]
[408293862,1773366632199,-500.0,0.00014635,2]
[408293863,1773366632212,-500.0,0.00014635,2]
[408293864,1773366632224,-500.0,0.00014635,2]
[408293865,1773366632236,-500.0,0.00014635,2]
[408293866,1773366632248,-500.0,0.00014635,2]
[408293867,1773366632259,-500.0,0.00014635,2]
[408293868,1773366632271,-500.0,0.00014635,2]
[408293869,1773366632282,-500.0,0.00014635,2]
[408293870,1773366632294,-500.0,0.00014635,2]
[408293871,1773366632305,-500.0,0.00014635,2]
[408293872,1773366632316,-200.0,0.00014635,2]
[408293873,1773366632331,-67928.34727056,0.00014636,2]
[408293874,1773366632346,-146627.79113108,0.00014636,2]
[408293875,1773366632359,-157015.22870971,0.00014636,2]
[408293876,1773366632373,-104315.12267191,0.00014636,2]
[408293877,1773366632386,-14315.71492432,0.00014636,2]
[408293878,1773366632400,-310.55827694,0.00014636,2]
[408293879,1773366632415,-334.02485,0.00014636,2]
[408293880,1773366632429,-511.41,0.00014636,2]
[408293881,1773366632445,-474.96623053,0.00014636,2]
[408293882,1773366632459,-400.1161207,0.00014636,2]
[408293883,1773366632474,-339.75260614,0.00014636,2]
[408293884,1773366632487,-1850.0,0.00014636,2]
[408293885,1773366632500,-867.29465335,0.00014636,2]
[408293886,1773366632512,-557.42922,0.00014636,2]
[408293887,1773366632529,-980.3800001,0.00014636,2]
[408293890,1773366637667,-6766.66,0.00014636,2]
[408293891,1773366637678,-26300.81984266,0.00014636,2]
[408293909,1773366640272,-1054.76192447,0.00014636,2]
[408293910,1773366640327,-2340.63444349,0.00014636,2]
[408293916,1773366642682,-18894.89843882,0.00014636,2]
[408293925,1773366645507,-300.0,0.00014636,2]
[408293926,1773366645562,-33863.43986329,0.00014636,2]
[408293927,1773366645802,-6313.38541179,0.00014636,2]
[408293928,1773366645814,-10364.21135554,0.00014636,2]
[408293929,1773366645826,-1105.7999994,0.00014636,2]
[408293930,1773366645881,-4824.30228062,0.00014636,2]
[408293943,1773366666575,167.62,6.925e-05,2]
[408293944,1773366666919,167.62,8.079e-05,2]
[408293945,1773366667029,167.62,9.233e-05,2]
[408293946,1773366667442,167.62,0.00010387,2]
[408293947,1773366667641,167.62,0.00011541,2]
[408293948,1773366667849,167.62,0.00012695,2]
[408293949,1773366668054,167.62,0.00013849,2]
[408293950,1773366705862,3234.0,0.000104,5]
[408293951,1773366737088,200.0,0.00013778,2]
[408293952,1773366738178,3135.125951,0.0001427,2]
[408293953,1773366742511,1279.35,0.00014342,2]
[408293954,1773366783767,559.45,0.00013756,2]
[408293955,1773366786945,174.0,0.00014342,2]
[408293956,1773366788992,200.0,0.00013756,2]
[408293957,1773366843291,2678.92,0.00013743,2]
[408293958,1773366851123,175.0,0.00014342,2]
[408293959,1773366896164,170.39,0.00013714,2]
[408293960,1773366906568,158.0,0.00014342,2]
[408293961,1773366953197,4000.0,0.00013688,2]
[408293962,1773366953488,1000.01,0.0001403,2]
[408293963,1773366953510,2999.99,0.0001403,2]
[408293965,1773367037113,522.47280844,9.342e-05,2]
[408293966,1773367037403,512.20162312,9.342e-05,2]
[408293967,1773367041273,6816.5,0.00013655,2]
[408293968,1773367067742,3240.0,0.00013655,2]
[408293969,1773367149115,3180.0,0.00014342,2]
[408293970,1773367207448,158.0,0.00014342,2]
[408293971,1773367243660,158.68796,0.00013809,7]
[408293972,1773367252357,166.66,0.00014021,2]
[408293973,1773367257497,195.5841864,0.00014275,2]
[408293976,1773367297602,264.479936,0.000138,7]
[408293979,1773367338914,500.0,9.342e-05,2]
[408293985,1773367385676,500.0,0.00013542,2]
[408293986,1773367471955,1893.14148251,0.00014336,2]
[408293987,1773367500746,351.88549,0.00013713,7]
[408293988,1773367506591,159.0,0.00014342,2]
[408293989,1773367548653,3211.9827,0.00014336,2]
[408293990,1773367636771,500.0,9.342e-05,2]
[408293991,1773367638364,500.0,9.342e-05,2]
[408293992,1773367638830,500.0,9.342e-05,2]
[408293993,1773367639518,500.0,9.342e-05,2]
[408293994,1773367643323,500.0,9.342e-05,2]
[408293995,1773367643814,500.0,9.342e-05,2]
[408293996,1773367644001,500.0,9.342e-05,2]
[408293997,1773367644477,582.84836734,9.342e-05,2]
[408293998,1773367644504,515.47622575,9.342e-05,2]
[408294000,1773367646879,507.4716506,9.342e-05,2]
[408294001,1773367650321,500.0,9.342e-05,2]
[408294002,1773367650779,508.73384177,9.342e-05,2]
[408294005,1773367710817,1112.88,0.00013519,2]
[408294006,1773367737311,10000.01,0.00013519,2]
[408294007,1773367737332,10000.01,0.00013519,2]
[408294008,1773367737352,5713.97,0.00013519,2]
[408294009,1773367744744,1697.56,0.00013528,2]
[408294012,1773367773765,-500.0,0.00015,30]
[408294013,1773367773793,-500.0,0.00015,30]
[408294014,1773367773819,-501.35115049,0.00015,30]
[408294015,1773367773842,-943.52633255,0.00015,30]
[408294016,1773367773871,-509.51843636,0.00015,30]
[408294017,1773367773894,-500.0,0.00015,30]
[408294018,1773367773918,-500.0,0.00015,30]
[408294019,1773367773943,-500.0,0.00015,30]
[408294020,1773367773968,-500.0,0.00015,30]
[408294021,1773367773991,-500.0,0.00015,30]
[408294022,1773367774015,-500.0,0.00015,30]
[408294023,1773367774039,-500.0,0.00015,30]
[408294024,1773367774063,-500.0,0.00015,30]
[408294025,1773367774086,-500.0,0.00015,30]
[408294026,1773367774109,-500.0,0.00015,30]
[408294027,1773367774133,-501.52045424,0.00015,30]
[408294028,1773367774156,-500.0,0.00015,30]
[408294029,1773367774178,-501.02372226,0.00015,30]
[408294030,1773367774201,-354.0599041,0.00015,30]
[408294031,1773367783159,155.6604187,0.00014342,2]
[408294032,1773367784370,500.0,0.00014342,2]
[408294033,1773367790480,254.71123729,0.00014342,2]
[408294034,1773367796746,830.12821491,0.00014336,2]
[408294035,1773367807043,159.0,0.00014342,2]
[408294041,1773367831664,-184.69877954,0.00014361,2]
[408294043,1773367831673,-150.0,0.00014361,2]
[408294045,1773367831682,-269.0,0.00014361,2]
[408294047,1773367831693,-300.0,0.00014361,2]
[408294049,1773367831702,-306.55182766,0.00014364,2]
[408294051,1773367831712,-300.0,0.00014366,2]
[408294052,1773367831721,-1200.0,0.00014366,2]
[408294053,1773367831730,-150.0,0.00014367,2]
[408294054,1773367831739,-300.0,0.00014367,2]
[408294055,1773367831748,-300.0,0.00014367,2]
[408294056,1773367831757,-12833.98745991,0.00014368,2]
[408294057,1773367831767,-5567.97972101,0.00014368,2]
[408294058,1773367831776,-6403.97614275,0.00014368,2]
[408294059,1773367831785,-4000.0,0.00014372,2]
[408294060,1773367831797,-500.0,0.00014375,2]
[408294061,1773367831810,-500.0,0.00014397,2]
[408294062,1773367831819,-150.0,0.00014416,2]
[408294063,1773367831828,-8527.53662734,0.00014425,2]
[408294064,1773367831837,-204.16158277,0.00014426,2]
[408294065,1773367831847,-500.0,0.00014434,2]
[408294066,1773367831856,-1000.0,0.00014434,2]
[408294067,1773367831864,-189.89038831,0.00014435,2]
[408294068,1773367831876,-500.0,0.00014435,2]
[408294069,1773367831885,-151.24428521,0.00014435,2]
[408294070,1773367831894,-500.0,0.00014435,2]
[408294071,1773367831904,-500.0,0.00014435,2]
[408294072,1773367831913,-500.0,0.00014435,2]
[408294073,1773367831923,-500.0,0.00014435,2]
[408294074,1773367831933,-500.0,0.00014435,2]
[408294075,1773367831943,-500.0,0.00014435,2]
[408294076,1773367831952,-500.0,0.00014435,2]
[408294077,1773367831963,-500.0,0.00014435,2]
[408294078,1773367831972,-500.0,0.00014435,2]
[408294079,1773367831983,-500.0,0.00014435,2]
[408294080,1773367831993,-500.0,0.00014435,2]
[408294081,1773367832004,-506.91981001,0.00014435,2]
[408294082,1773367832013,-500.0,0.00014435,2]
[408294083,1773367832023,-500.0,0.00014435,2]
[408294084,1773367832033,-16093.46042173,0.00014436,2]
[408294085,1773367832045,-1700.99268707,0.00014436,2]
[408294086,1773367832056,-126881.75614114,0.00014436,2]
[408294087,1773367832067,-17110.16582124,0.00014436,2]
[408294090,1773367837949,-435.22999727,0.00014436,2]
[408294091,1773367837960,-114889.73037221,0.00014436,2]
[408294132,1773367839982,-72150.56759548,0.00014436,2]
[408294148,1773367842932,-802.74590594,0.00014436,2]
[408294149,1773367843048,-238.99899891,0.00014436,2]
[408294153,1773367845442,2891.0,0.000103,5]
[408294154,1773367845945,-4901.15109411,0.00014436,2]
[408294155,1773367846001,-637.55999999,0.00014436,2]